[Event "Late-Titled-Tuesday-Blitz-October-24-2023"]
[Site "Chess.com"]
[Date "2023.10.24"]
[Round "1"]
[White "Witik"]
[Black "Haykoooo0o"]
[Result "1-0"]
[WhiteElo "2803"]
[BlackElo "2463"]
[TimeControl "180+1"]
[EndTime "14:06:08 PDT"]
[Termination "Witik won by checkmate"]

1. e4 {[%clk 0:02:56.2]} 1... c6 {[%clk 0:02:31.4]} 2. d4 {[%clk 0:02:55.9]}
2... d5 {[%clk 0:02:31.7]} 3. exd5 {[%clk 0:02:56.5]} 3... cxd5 {[%clk
0:02:32.6]} 4. Bd3 {[%clk 0:02:56.9]} 4... Nf6 {[%clk 0:02:32.8]} 5. c3 {[%clk
0:02:57.3]} 5... Bg4 {[%clk 0:02:33]} 6. Qb3 {[%clk 0:02:53.9]} 6... Qc7 {[%clk
0:02:32.9]} 7. h3 {[%clk 0:02:54]} 7... Bd7 {[%clk 0:02:00.6]} 8. Ne2 {[%clk
0:02:51.2]} 8... Nc6 {[%clk 0:01:58.6]} 9. Bf4 {[%clk 0:02:50.7]} 9... Qc8
{[%clk 0:01:58.1]} 10. Nd2 {[%clk 0:02:50.1]} 10... e6 {[%clk 0:01:52.6]} 11.
O-O {[%clk 0:02:48.1]} 11... Be7 {[%clk 0:01:53.2]} 12. Rfe1 {[%clk 0:02:46.4]}
12... O-O {[%clk 0:01:52.3]} 13. a4 {[%clk 0:02:44.9]} 13... Na5 {[%clk
0:01:43.7]} 14. Qc2 {[%clk 0:02:44.6]} 14... a6 {[%clk 0:01:38.1]} 15. Nf3
{[%clk 0:02:43.8]} 15... Nc4 {[%clk 0:01:33.9]} 16. Ng3 {[%clk 0:02:39.3]} 16...
Bd6 {[%clk 0:01:25.1]} 17. Ne5 {[%clk 0:02:37.2]} 17... Qc7 {[%clk 0:01:20.7]}
18. b3 {[%clk 0:02:32.9]} 18... Nb6 {[%clk 0:01:06.1]} 19. c4 {[%clk 0:02:21.9]}
19... dxc4 {[%clk 0:00:59.3]} 20. bxc4 {[%clk 0:02:22.1]} 20... Bxe5 {[%clk
0:00:42]} 21. dxe5 {[%clk 0:02:13.1]} 21... Ne8 {[%clk 0:00:41.3]} 22. Bxh7+
{[%clk 0:02:12.1]} 22... Kh8 {[%clk 0:00:41.7]} 23. a5 {[%clk 0:01:56.7]} 23...
Nxc4 {[%clk 0:00:37.3]} 24. Rac1 {[%clk 0:01:50.2]} 24... Rc8 {[%clk 0:00:32.8]}
25. Bd3 {[%clk 0:01:50]} 25... Bb5 {[%clk 0:00:30.2]} 26. Qe2 {[%clk 0:01:45.6]}
26... f5 {[%clk 0:00:17.3]} 27. Rc2 {[%clk 0:01:10.8]} 27... Qxa5 {[%clk
0:00:13.2]} 28. Rec1 {[%clk 0:01:10.8]} 28... Qa4 {[%clk 0:00:08.4]} 29. Bxc4
{[%clk 0:01:07.9]} 29... Kg8 {[%clk 0:00:05.5]} 30. Bxe6+ {[%clk 0:01:06.9]}
30... Kh8 {[%clk 0:00:05.5]} 31. Qh5# {[%clk 0:01:06.8]} 1-0

[Event "Late-Titled-Tuesday-Blitz-October-24-2023"]
[Site "Chess.com"]
[Date "2023.10.24"]
[Round "1"]
[White "katharinareinecke"]
[Black "rdarruda"]
[Result "0-1"]
[WhiteElo "1886"]
[BlackElo "2536"]
[TimeControl "180+1"]
[EndTime "14:06:09 PDT"]
[Termination "rdarruda won on time"]

1. d4 {[%clk 0:02:53.5]} 1... Nf6 {[%clk 0:02:59.2]} 2. c4 {[%clk 0:02:53.4]}
2... e5 {[%clk 0:02:59.1]} 3. dxe5 {[%clk 0:02:51]} 3... Ne4 {[%clk 0:02:59.2]}
4. Bf4 {[%clk 0:02:50.8]} 4... Nc6 {[%clk 0:02:58.5]} 5. Nf3 {[%clk 0:02:49.8]}
5... g5 {[%clk 0:02:56.6]} 6. Bg3 {[%clk 0:02:48.7]} 6... Bg7 {[%clk 0:02:55.7]}
7. Qd5 {[%clk 0:02:40]} 7... Nxg3 {[%clk 0:02:54.1]} 8. hxg3 {[%clk 0:02:25.1]}
8... Qe7 {[%clk 0:02:54.1]} 9. Nc3 {[%clk 0:02:07]} 9... Nxe5 {[%clk 0:02:53.4]}
10. O-O-O {[%clk 0:01:41.7]} 10... d6 {[%clk 0:02:49.7]} 11. Ne4 {[%clk
0:01:15.2]} 11... h6 {[%clk 0:02:41.9]} 12. c5 {[%clk 0:00:45.6]} 12... dxc5
{[%clk 0:02:32.7]} 13. Nxc5 {[%clk 0:00:40.2]} 13... c6 {[%clk 0:01:59.9]} 14.
Qd6 {[%clk 0:00:27.8]} 14... Qxd6 {[%clk 0:01:53.5]} 15. Rxd6 {[%clk 0:00:27.2]}
15... Bf8 {[%clk 0:01:49.9]} 16. Nxe5 {[%clk 0:00:14.1]} 16... Bxd6 {[%clk
0:01:48.8]} 17. Ned3 {[%clk 0:00:14]} 17... b6 {[%clk 0:01:33.9]} 18. Ne4 {[%clk
0:00:13.5]} 18... Be7 {[%clk 0:01:34.5]} 19. e3 {[%clk 0:00:13]} 19... Bf5
{[%clk 0:01:33.5]} 20. Nc3 {[%clk 0:00:10.7]} 20... O-O-O {[%clk 0:01:33.1]} 21.
Ne1 {[%clk 0:00:06.9]} 21... h5 {[%clk 0:01:26.8]} 22. Nf3 {[%clk 0:00:06.8]}
22... h4 {[%clk 0:01:24]} 23. gxh4 {[%clk 0:00:05.4]} 23... gxh4 {[%clk
0:01:24.9]} 24. Bc4 {[%clk 0:00:05.3]} 24... Rdg8 {[%clk 0:01:14.1]} 25. Rh2
{[%clk 0:00:02.9]} 25... Rg7 {[%clk 0:00:58.6]} 26. a3 {[%clk 0:00:01.3]} 26...
b5 {[%clk 0:00:54.9]} 0-1

[Event "Late-Titled-Tuesday-Blitz-October-24-2023"]
[Site "Chess.com"]
[Date "2023.10.24"]
[Round "1"]
[White "thechessnoob12345"]
[Black "IgorBjelobrk"]
[Result "0-1"]
[WhiteElo "2284"]
[BlackElo "2609"]
[TimeControl "180+1"]
[EndTime "14:06:13 PDT"]
[Termination "IgorBjelobrk won by resignation"]

1. d4 {[%clk 0:03:00.9]} 1... e6 {[%clk 0:02:56.6]} 2. c4 {[%clk 0:03:00.9]}
2... b6 {[%clk 0:02:56.1]} 3. Nc3 {[%clk 0:03:00.7]} 3... Bb7 {[%clk 0:02:53.7]}
4. e4 {[%clk 0:02:56.6]} 4... Bb4 {[%clk 0:02:51]} 5. Qc2 {[%clk 0:02:54.4]}
5... Bxc3+ {[%clk 0:02:48.5]} 6. bxc3 {[%clk 0:02:54.3]} 6... Qh4 {[%clk
0:02:48.6]} 7. Bd3 {[%clk 0:02:48]} 7... f5 {[%clk 0:02:47.8]} 8. Nf3 {[%clk
0:02:47.5]} 8... Qg4 {[%clk 0:02:43.2]} 9. Nd2 {[%clk 0:01:56.9]} 9... Qxg2
{[%clk 0:02:38.5]} 10. Rf1 {[%clk 0:01:57.1]} 10... g6 {[%clk 0:02:10.6]} 11. d5
{[%clk 0:01:37.5]} 11... Na6 {[%clk 0:01:59.8]} 12. Ba3 {[%clk 0:01:35.3]} 12...
Nf6 {[%clk 0:01:49]} 13. O-O-O {[%clk 0:01:09.8]} 13... Nxe4 {[%clk 0:01:30.4]}
14. Nxe4 {[%clk 0:01:06.9]} 14... fxe4 {[%clk 0:01:30.3]} 15. Bxe4 {[%clk
0:01:06.9]} 15... Qxh2 {[%clk 0:01:23.9]} 16. Kb1 {[%clk 0:01:00.4]} 16... O-O-O
{[%clk 0:01:15.1]} 17. dxe6 {[%clk 0:00:59]} 17... dxe6 {[%clk 0:01:11.7]} 18.
Bxb7+ {[%clk 0:00:57.2]} 18... Kxb7 {[%clk 0:01:12.6]} 19. Qe4+ {[%clk
0:00:57.2]} 19... Kb8 {[%clk 0:01:12.5]} 20. Qxe6 {[%clk 0:00:51.8]} 20... Rxd1+
{[%clk 0:01:10.2]} 21. Rxd1 {[%clk 0:00:52.7]} 21... Qxf2 {[%clk 0:01:09.8]} 22.
Qe5 {[%clk 0:00:45.7]} 22... Rc8 {[%clk 0:01:07.4]} 23. Qb5 {[%clk 0:00:28.9]}
23... Nc5 {[%clk 0:01:03.8]} 24. Rh1 {[%clk 0:00:25.7]} 24... h5 {[%clk
0:01:02.3]} 25. Bc1 {[%clk 0:00:15.7]} 25... Qf5+ {[%clk 0:00:58]} 26. Ka1
{[%clk 0:00:15.7]} 26... Rd8 {[%clk 0:00:54.5]} 27. a4 {[%clk 0:00:15.3]} 27...
Qc2 {[%clk 0:00:51.7]} 28. a5 {[%clk 0:00:15.5]} 28... Nb3+ {[%clk 0:00:51.2]}
0-1

[Event "Late-Titled-Tuesday-Blitz-October-24-2023"]
[Site "Chess.com"]
[Date "2023.10.24"]
[Round "1"]
[White "TheoSlade"]
[Black "Angry_Twin"]
[Result "0-1"]
[WhiteElo "2512"]
[BlackElo "2939"]
[TimeControl "180+1"]
[EndTime "14:06:19 PDT"]
[Termination "Angry_Twin won by checkmate"]

1. d4 {[%clk 0:03:00.9]} 1... Nf6 {[%clk 0:02:59.3]} 2. c4 {[%clk 0:03:01.2]}
2... e6 {[%clk 0:02:59.9]} 3. g3 {[%clk 0:03:01.7]} 3... d5 {[%clk 0:03:00.5]}
4. Bg2 {[%clk 0:03:02.3]} 4... Bb4+ {[%clk 0:03:01.2]} 5. Nd2 {[%clk 0:03:02.2]}
5... O-O {[%clk 0:03:00.7]} 6. Nf3 {[%clk 0:03:02.5]} 6... b6 {[%clk 0:03:01.2]}
7. O-O {[%clk 0:03:02.6]} 7... Bb7 {[%clk 0:03:01.4]} 8. a3 {[%clk 0:03:03.3]}
8... Be7 {[%clk 0:03:01.2]} 9. cxd5 {[%clk 0:03:04]} 9... exd5 {[%clk 0:02:59]}
10. b4 {[%clk 0:03:04.5]} 10... c6 {[%clk 0:02:58.2]} 11. Bb2 {[%clk 0:02:58]}
11... Nbd7 {[%clk 0:02:58.7]} 12. Ne5 {[%clk 0:02:56.9]} 12... Bd6 {[%clk
0:02:58.1]} 13. Ndf3 {[%clk 0:02:55.5]} 13... Re8 {[%clk 0:02:57.8]} 14. Rc1
{[%clk 0:02:51.3]} 14... Rc8 {[%clk 0:02:57.4]} 15. Qa4 {[%clk 0:02:48.7]} 15...
b5 {[%clk 0:02:41.3]} 16. Qb3 {[%clk 0:02:37.9]} 16... Nb6 {[%clk 0:02:41.5]}
17. Rc2 {[%clk 0:02:26.4]} 17... Nc4 {[%clk 0:02:37.7]} 18. Bc3 {[%clk
0:02:17.7]} 18... Ne4 {[%clk 0:02:36.1]} 19. a4 {[%clk 0:02:09.2]} 19... f6
{[%clk 0:02:34.9]} 20. Nd3 {[%clk 0:02:07.1]} 20... bxa4 {[%clk 0:02:27.2]} 21.
Qxa4 {[%clk 0:02:01.7]} 21... Nxc3 {[%clk 0:02:24.3]} 22. Rxc3 {[%clk
0:02:02.6]} 22... Rxe2 {[%clk 0:02:24.1]} 23. Qxa7 {[%clk 0:01:57]} 23... Qe7
{[%clk 0:02:24.3]} 24. Nc5 {[%clk 0:01:51.3]} 24... Bxc5 {[%clk 0:02:20.3]} 25.
Qxc5 {[%clk 0:01:51.4]} 25... Qxc5 {[%clk 0:02:17]} 26. dxc5 {[%clk 0:01:46.9]}
26... Rb2 {[%clk 0:02:16.5]} 27. Bh3 {[%clk 0:01:42.3]} 27... Re8 {[%clk
0:02:14]} 28. Nd4 {[%clk 0:01:39.2]} 28... Re4 {[%clk 0:02:11.6]} 29. Nc2 {[%clk
0:01:31.1]} 29... Re2 {[%clk 0:01:54.5]} 30. Nd4 {[%clk 0:01:26.9]} 30... Re4
{[%clk 0:01:54.2]} 31. Nc2 {[%clk 0:01:26.5]} 31... Ba6 {[%clk 0:01:54.7]} 32.
Ra1 {[%clk 0:01:26.6]} 32... Bb5 {[%clk 0:01:46.3]} 33. Ra8+ {[%clk 0:01:19.1]}
33... Kf7 {[%clk 0:01:46]} 34. Bf5 {[%clk 0:01:19.7]} 34... Re7 {[%clk
0:01:24.2]} 35. Bxh7 {[%clk 0:01:18.8]} 35... g6 {[%clk 0:01:13.6]} 36. Rg8
{[%clk 0:01:17.4]} 36... Ne5 {[%clk 0:01:14.1]} 37. f4 {[%clk 0:01:10.3]} 37...
Ng4 {[%clk 0:00:59.5]} 38. Rxg6 {[%clk 0:01:03.9]} 38... Rb1+ {[%clk 0:00:56.4]}
39. Kg2 {[%clk 0:01:04.4]} 39... Bf1+ {[%clk 0:00:51.2]} 40. Kf3 {[%clk
0:00:45.5]} 40... Nxh2+ {[%clk 0:00:50.9]} 41. Kf2 {[%clk 0:00:45.9]} 41... Re2+
{[%clk 0:00:50.3]} 42. Kg1 {[%clk 0:00:46.5]} 42... Bh3+ {[%clk 0:00:45.9]} 43.
Ne1 {[%clk 0:00:44.2]} 43... Rbxe1# {[%clk 0:00:46.1]} 0-1

[Event "Late-Titled-Tuesday-Blitz-October-24-2023"]
[Site "Chess.com"]
[Date "2023.10.24"]
[Round "1"]
[White "familijatop71"]
[Black "whitemirrorninja"]
[Result "0-1"]
[WhiteElo "2135"]
[BlackElo "2565"]
[TimeControl "180+1"]
[EndTime "14:06:19 PDT"]
[Termination "whitemirrorninja won by resignation"]

1. e4 {[%clk 0:02:59.7]} 1... c5 {[%clk 0:02:58]} 2. c3 {[%clk 0:02:58.6]} 2...
e6 {[%clk 0:02:56.6]} 3. d4 {[%clk 0:02:58.4]} 3... d5 {[%clk 0:02:56.5]} 4. e5
{[%clk 0:02:58.6]} 4... Bd7 {[%clk 0:02:53.8]} 5. Nf3 {[%clk 0:02:56.9]} 5...
Nc6 {[%clk 0:02:36.8]} 6. a3 {[%clk 0:02:57.2]} 6... Rc8 {[%clk 0:02:33.9]} 7.
b4 {[%clk 0:02:55.4]} 7... cxd4 {[%clk 0:02:33.5]} 8. cxd4 {[%clk 0:02:55.3]}
8... a6 {[%clk 0:02:33.8]} 9. Bd3 {[%clk 0:02:51.8]} 9... Na7 {[%clk 0:02:32]}
10. O-O {[%clk 0:02:45.5]} 10... Bb5 {[%clk 0:02:30.9]} 11. Bg5 {[%clk
0:02:23.3]} 11... Ne7 {[%clk 0:02:27.8]} 12. a4 {[%clk 0:02:11.2]} 12... Bxd3
{[%clk 0:02:24.8]} 13. Qxd3 {[%clk 0:02:11.2]} 13... h6 {[%clk 0:02:23.5]} 14.
Be3 {[%clk 0:01:55.7]} 14... Nf5 {[%clk 0:02:20.6]} 15. b5 {[%clk 0:01:39.5]}
15... a5 {[%clk 0:02:20.9]} 16. Nbd2 {[%clk 0:01:35.7]} 16... Bb4 {[%clk
0:02:08.3]} 17. Rac1 {[%clk 0:01:32.6]} 17... O-O {[%clk 0:02:05.9]} 18. Nb3
{[%clk 0:01:24.8]} 18... b6 {[%clk 0:01:59.9]} 19. Rxc8 {[%clk 0:01:18.3]} 19...
Nxc8 {[%clk 0:01:54.1]} 20. Nbd2 {[%clk 0:01:12.5]} 20... Nce7 {[%clk
0:01:49.9]} 21. g4 {[%clk 0:01:11.6]} 21... Nxe3 {[%clk 0:01:48.3]} 22. fxe3
{[%clk 0:01:03.5]} 22... Qd7 {[%clk 0:01:39]} 23. Rc1 {[%clk 0:01:01.4]} 23...
Rc8 {[%clk 0:01:37.4]} 24. Rxc8+ {[%clk 0:00:59.6]} 24... Qxc8 {[%clk
0:01:37.9]} 25. Kg2 {[%clk 0:00:33.9]} 25... Qc1 {[%clk 0:01:31.4]} 26. h4
{[%clk 0:00:29.8]} 26... Qd1 {[%clk 0:01:26.5]} 27. Kf2 {[%clk 0:00:12.8]} 27...
Qxa4 {[%clk 0:01:18.8]} 28. g5 {[%clk 0:00:11.2]} 28... h5 {[%clk 0:01:17]} 29.
e4 {[%clk 0:00:11]} 29... Bxd2 {[%clk 0:01:10.4]} 30. Nxd2 {[%clk 0:00:08.5]}
30... Qa2 {[%clk 0:01:04.8]} 31. Qc3 {[%clk 0:00:05.4]} 31... dxe4 {[%clk
0:01:01.2]} 32. Qc8+ {[%clk 0:00:02.6]} 32... Nxc8 {[%clk 0:01:00.3]} 0-1

[Event "Late-Titled-Tuesday-Blitz-October-24-2023"]
[Site "Chess.com"]
[Date "2023.10.24"]
[Round "1"]
[White "filipluczak05"]
[Black "Miguelitro69"]
[Result "1-0"]
[WhiteElo "2624"]
[BlackElo "2309"]
[TimeControl "180+1"]
[EndTime "14:06:20 PDT"]
[Termination "filipluczak05 won by resignation"]

1. d4 {[%clk 0:02:59.8]} 1... d6 {[%clk 0:02:59.6]} 2. e4 {[%clk 0:02:54.7]}
2... g6 {[%clk 0:02:59.3]} 3. Nc3 {[%clk 0:02:53.2]} 3... Bg7 {[%clk 0:02:59.6]}
4. f4 {[%clk 0:02:49.9]} 4... Nf6 {[%clk 0:02:59.6]} 5. Nf3 {[%clk 0:02:48.9]}
5... O-O {[%clk 0:02:59.3]} 6. e5 {[%clk 0:02:48.2]} 6... dxe5 {[%clk
0:02:58.3]} 7. fxe5 {[%clk 0:02:49.1]} 7... Nd5 {[%clk 0:02:57.9]} 8. Bc4 {[%clk
0:02:47.5]} 8... Nxc3 {[%clk 0:02:56.8]} 9. bxc3 {[%clk 0:02:48.4]} 9... e6
{[%clk 0:02:52.4]} 10. O-O {[%clk 0:02:45.1]} 10... b6 {[%clk 0:02:50.2]} 11.
Bg5 {[%clk 0:02:44.2]} 11... Qd7 {[%clk 0:02:48.7]} 12. Qd2 {[%clk 0:02:43.3]}
12... Bb7 {[%clk 0:02:47.5]} 13. Bf6 {[%clk 0:02:40.1]} 13... Nc6 {[%clk
0:02:38.4]} 14. Qg5 {[%clk 0:02:18.3]} 14... Na5 {[%clk 0:02:00.4]} 15. Bd3
{[%clk 0:02:14.7]} 15... Qd5 {[%clk 0:02:00.1]} 16. Rae1 {[%clk 0:02:05.5]}
16... Bxf6 {[%clk 0:01:57]} 17. Qxf6 {[%clk 0:02:01.3]} 17... Qd8 {[%clk
0:01:55.4]} 18. Qf4 {[%clk 0:01:59.4]} 18... Kg7 {[%clk 0:01:53.1]} 19. h4
{[%clk 0:01:34.3]} 19... h5 {[%clk 0:01:41.3]} 20. Ng5 {[%clk 0:01:33.3]} 20...
Qe7 {[%clk 0:01:36.8]} 21. Qg3 {[%clk 0:01:07.1]} 21... Bd5 {[%clk 0:00:42.7]}
22. Rf6 {[%clk 0:01:05.2]} 22... c5 {[%clk 0:00:20.7]} 23. Ref1 {[%clk
0:00:45.9]} 23... cxd4 {[%clk 0:00:18.7]} 24. Nxf7 {[%clk 0:00:37]} 1-0

[Event "Late-Titled-Tuesday-Blitz-October-24-2023"]
[Site "Chess.com"]
[Date "2023.10.24"]
[Round "1"]
[White "maksimys18"]
[Black "dropstoneDP"]
[Result "0-1"]
[WhiteElo "2522"]
[BlackElo "3099"]
[TimeControl "180+1"]
[EndTime "14:06:29 PDT"]
[Termination "dropstoneDP won by checkmate"]

1. d4 {[%clk 0:03:00.9]} 1... d5 {[%clk 0:02:59.3]} 2. Nf3 {[%clk 0:02:56.4]}
2... Nf6 {[%clk 0:02:59.2]} 3. c4 {[%clk 0:02:56.3]} 3... dxc4 {[%clk
0:03:00.1]} 4. Nc3 {[%clk 0:02:56.2]} 4... Bf5 {[%clk 0:02:47.3]} 5. Bg5 {[%clk
0:02:55.5]} 5... Nbd7 {[%clk 0:02:45.5]} 6. e3 {[%clk 0:02:54.6]} 6... h6 {[%clk
0:02:45]} 7. Bh4 {[%clk 0:02:54.4]} 7... e6 {[%clk 0:02:43.6]} 8. e4 {[%clk
0:02:47.3]} 8... Bh7 {[%clk 0:02:43.4]} 9. e5 {[%clk 0:02:47.4]} 9... g5 {[%clk
0:02:43.5]} 10. Nxg5 {[%clk 0:02:26.1]} 10... hxg5 {[%clk 0:02:41]} 11. Bxg5
{[%clk 0:02:26]} 11... c6 {[%clk 0:02:34.4]} 12. exf6 {[%clk 0:02:15.6]} 12...
Qa5 {[%clk 0:02:34.6]} 13. h4 {[%clk 0:02:10.1]} 13... O-O-O {[%clk 0:02:31.5]}
14. Bxc4 {[%clk 0:02:08.8]} 14... Ne5 {[%clk 0:02:31.2]} 15. Qb3 {[%clk
0:01:57.9]} 15... Rxd4 {[%clk 0:02:29.1]} 16. Bxe6+ {[%clk 0:01:53.8]} 16...
fxe6 {[%clk 0:02:27.2]} 17. Qxe6+ {[%clk 0:01:53.7]} 17... Kc7 {[%clk
0:01:51.5]} 18. O-O {[%clk 0:01:50.9]} 18... Rd6 {[%clk 0:01:50.2]} 19. Qe8
{[%clk 0:01:41.8]} 19... Bg6 {[%clk 0:01:49.5]} 20. b4 {[%clk 0:00:51]} 20...
Bxe8 {[%clk 0:01:34]} 21. bxa5 {[%clk 0:00:50.1]} 21... Rd4 {[%clk 0:01:34.5]}
22. Rac1 {[%clk 0:00:45.9]} 22... a6 {[%clk 0:01:25.3]} 23. Be3 {[%clk
0:00:40.7]} 23... Rdxh4 {[%clk 0:01:23.1]} 24. Bb6+ {[%clk 0:00:33.4]} 24... Kc8
{[%clk 0:01:21.9]} 25. f3 {[%clk 0:00:20.6]} 25... Nd3 {[%clk 0:01:21]} 26. g4
{[%clk 0:00:17.6]} 26... Rh1+ {[%clk 0:01:18.4]} 27. Kg2 {[%clk 0:00:18.1]}
27... R8h2+ {[%clk 0:01:18.3]} 28. Kg3 {[%clk 0:00:18.5]} 28... Bd6+ {[%clk
0:01:18.6]} 29. f4 {[%clk 0:00:18.8]} 29... Rh3+ {[%clk 0:01:17.1]} 30. Kg2
{[%clk 0:00:19]} 30... R1h2+ {[%clk 0:01:17.2]} 31. Kg1 {[%clk 0:00:19.1]} 31...
Nxc1 {[%clk 0:01:15.9]} 32. Rxc1 {[%clk 0:00:09.9]} 32... Rh1+ {[%clk
0:01:15.4]} 33. Kg2 {[%clk 0:00:10.5]} 33... Rxc1 {[%clk 0:01:15.9]} 34. Ne4
{[%clk 0:00:11.1]} 34... Rd3 {[%clk 0:01:15.5]} 35. g5 {[%clk 0:00:11.1]} 35...
Rc2+ {[%clk 0:01:15.5]} 36. Nf2 {[%clk 0:00:11.5]} 36... c5 {[%clk 0:01:13.7]}
37. f5 {[%clk 0:00:11.8]} 37... Bc6+ {[%clk 0:01:13.6]} 38. Kf1 {[%clk
0:00:10.8]} 38... Rf3 {[%clk 0:01:12.5]} 39. f7 {[%clk 0:00:10.3]} 39... Rfxf2+
{[%clk 0:01:11.6]} 40. Ke1 {[%clk 0:00:10.8]} 40... Rxf5 {[%clk 0:01:11.9]} 41.
g6 {[%clk 0:00:10.7]} 41... Bg3+ {[%clk 0:01:10.6]} 42. Kd1 {[%clk 0:00:10.6]}
42... Ba4 {[%clk 0:01:10.6]} 43. g7 {[%clk 0:00:08.7]} 43... Rf1# {[%clk
0:01:10.6]} 0-1

[Event "Late-Titled-Tuesday-Blitz-October-24-2023"]
[Site "Chess.com"]
[Date "2023.10.24"]
[Round "1"]
[White "Road2GM3000"]
[Black "djano"]
[Result "0-1"]
[WhiteElo "2375"]
[BlackElo "2678"]
[TimeControl "180+1"]
[EndTime "14:06:31 PDT"]
[Termination "djano won by resignation"]

1. d4 {[%clk 0:02:33.5]} 1... g6 {[%clk 0:02:58.8]} 2. c4 {[%clk 0:02:34.1]}
2... Bg7 {[%clk 0:02:59.1]} 3. Nc3 {[%clk 0:02:34.8]} 3... Nf6 {[%clk
0:02:59.3]} 4. e4 {[%clk 0:02:35.5]} 4... d6 {[%clk 0:02:59.9]} 5. f4 {[%clk
0:02:36.3]} 5... O-O {[%clk 0:02:58.9]} 6. Nf3 {[%clk 0:02:37]} 6... c5 {[%clk
0:02:59.1]} 7. d5 {[%clk 0:02:37.3]} 7... e6 {[%clk 0:02:58.4]} 8. Be2 {[%clk
0:02:38.1]} 8... exd5 {[%clk 0:02:58.1]} 9. exd5 {[%clk 0:02:39]} 9... a6 {[%clk
0:02:51.1]} 10. a4 {[%clk 0:02:38.3]} 10... Bg4 {[%clk 0:02:50]} 11. O-O {[%clk
0:02:38.8]} 11... Nbd7 {[%clk 0:02:50.3]} 12. Bd2 {[%clk 0:02:34.6]} 12... Re8
{[%clk 0:02:47.8]} 13. Bd3 {[%clk 0:02:33.8]} 13... Qb6 {[%clk 0:02:41.4]} 14.
a5 {[%clk 0:02:33.9]} 14... Qc7 {[%clk 0:02:40]} 15. h3 {[%clk 0:02:33.2]} 15...
Bxf3 {[%clk 0:02:38.8]} 16. Qxf3 {[%clk 0:02:33]} 16... b5 {[%clk 0:02:37.6]}
17. cxb5 {[%clk 0:02:29]} 17... c4 {[%clk 0:02:37.6]} 18. Bc2 {[%clk 0:02:17.8]}
18... axb5 {[%clk 0:02:37.8]} 19. Kh1 {[%clk 0:02:12.6]} 19... b4 {[%clk
0:02:36.6]} 20. Nb5 {[%clk 0:02:04]} 20... Qc5 {[%clk 0:02:33.9]} 21. Ba4 {[%clk
0:01:58.7]} 21... Rxa5 {[%clk 0:02:27.5]} 22. Be1 {[%clk 0:01:41.2]} 22... Rea8
{[%clk 0:02:09]} 23. Bf2 {[%clk 0:01:35.6]} 23... Qxd5 {[%clk 0:02:09]} 24. Nc7
{[%clk 0:01:35.1]} 24... Qxf3 {[%clk 0:02:00]} 25. gxf3 {[%clk 0:01:36]} 25...
Rd8 {[%clk 0:01:46]} 26. Bb5 {[%clk 0:01:25.6]} 26... Rxa1 {[%clk 0:01:43]} 27.
Rxa1 {[%clk 0:01:26.5]} 27... c3 {[%clk 0:01:36]} 28. bxc3 {[%clk 0:01:27.4]}
28... bxc3 {[%clk 0:01:36.6]} 29. Rc1 {[%clk 0:01:27.8]} 29... Nh5 {[%clk
0:01:31.6]} 30. Be1 {[%clk 0:01:07.4]} 30... Nc5 {[%clk 0:01:15.7]} 31. Bxc3
{[%clk 0:01:04.1]} 31... Nxf4 {[%clk 0:01:09.7]} 32. Ba5 {[%clk 0:00:55.7]}
32... Rb8 {[%clk 0:01:01.5]} 33. Bc4 {[%clk 0:00:50.8]} 33... Be5 {[%clk
0:00:45.9]} 34. Nd5 {[%clk 0:00:26.3]} 34... Rb2 {[%clk 0:00:44.7]} 35. Nxf4
{[%clk 0:00:19.2]} 35... Bxf4 {[%clk 0:00:44.8]} 36. Bc3 {[%clk 0:00:15.1]}
36... Bxc1 {[%clk 0:00:43.3]} 0-1